bitfinex/quotes_BTCUSD_20251212
["timestamp","ask_amount","ask_price","bid_price","bid_amount"]
[1765514075995,0.01083952,92255.0,92252.0,0.01083987]
[1765514076177,0.0108394,92256.0,92253.0,0.03920975]
[1765514076376,0.0108394,92256.0,92254.0,0.03149662]
[1765514076581,0.22762798,92256.0,92254.0,0.03149662]
[1765514077200,0.2167982,92252.0,92251.0,0.0162688]
[1765514077438,0.21841107,92252.0,92251.0,0.0162688]
[1765514079010,0.23341107,92252.0,92251.0,0.0182688]
[1765514079444,0.23341107,92252.0,92251.0,0.002]
[1765514083345,0.25049107,92252.0,92251.0,0.002]
[1765514083551,0.29508558,92252.0,92251.0,0.002]
[1765514083741,0.36688267,92252.0,92251.0,0.002]
[1765514084176,0.38315147,92252.0,92251.0,0.002]
[1765514088844,0.38439398,92252.0,92251.0,0.002]
[1765514092615,0.33979947,92252.0,92251.0,0.002]
[1765514093026,0.26800238,92252.0,92251.0,0.002]
[1765514097327,0.31259689,92252.0,92251.0,0.002]
[1765514098850,0.61340132,92252.0,92251.0,0.002]
[1765514099450,0.2168821,92216.0,92215.0,0.02476]
[1765514099664,0.01084386,92218.0,92215.0,0.02476]
[1765514099865,0.21687975,92217.0,92215.0,0.02476]
[1765514100074,0.01084386,92218.0,92215.0,0.03649]
[1765514100295,0.21687975,92217.0,92215.0,0.03649]
[1765514100501,0.01084386,92218.0,92216.0,0.02476]
[1765514100701,0.01084386,92218.0,92217.0,0.01502]
[1765514101195,0.01084386,92218.0,92217.0,0.03978]
[1765514101403,0.01084351,92221.0,92217.0,0.05062398]
[1765514101404,0.01084363,92220.0,92217.0,0.05062398]
[1765514101626,0.01084363,92220.0,92218.0,0.02476]
[1765514101823,0.01084363,92220.0,92219.0,0.01502]
[1765514102020,0.01084351,92221.0,92219.0,0.01502]
[1765514102224,0.01084351,92221.0,92220.0,0.0560488]
[1765514103697,0.01184351,92221.0,92220.0,0.0560488]
[1765514104511,0.01284351,92221.0,92220.0,0.0560488]
[1765514106279,0.002,92221.0,92220.0,0.0560488]
[1765514106640,0.00234686,92221.0,92220.0,0.0560488]
[1765514111436,0.00234686,92221.0,92220.0,0.0162688]
[1765514113264,0.00234686,92221.0,92220.0,0.0410288]
[1765514113400,0.00234686,92221.0,92220.0,0.0162688]
[1765514115533,0.02945565,92221.0,92220.0,0.0162688]
[1765514116188,0.02945565,92221.0,92213.0,0.02257445]
[1765514116189,0.0108441,92216.0,92213.0,0.02257445]
[1765514116706,0.0108441,92216.0,92215.0,0.01549]
[1765514117048,0.0108441,92216.0,92215.0,0.03937]
[1765514117454,0.0118441,92216.0,92215.0,0.03937]
[1765514117757,0.0128441,92216.0,92215.0,0.03937]
[1765514117997,0.0108441,92216.0,92215.0,0.03937]
[1765514118199,0.0128441,92216.0,92215.0,0.03937]
[1765514118351,0.002,92216.0,92215.0,0.03937]
[1765514122074,0.2297262,92216.0,92213.0,0.01173]
[1765514122429,0.2168868,92214.0,92213.0,0.01173]
[1765514123997,0.2178868,92214.0,92213.0,0.01173]
[1765514124170,0.2188868,92214.0,92213.0,0.01173]
[1765514124763,0.002,92214.0,92213.0,0.05163]
[1765514127069,0.002,92214.0,92213.0,0.26851915]
[1765514130259,0.002,92214.0,92213.0,0.05163]
[1765514131731,0.002,92214.0,92213.0,0.26851915]
[1765514132294,0.002,92214.0,92213.0,0.05163]
[1765514171656,0.002,92214.0,92213.0,0.0678988]
[1765514177524,0.002,92214.0,92213.0,0.11102678]
[1765514182017,0.002,92214.0,92213.0,0.0678988]
[1765514186287,0.002,92214.0,92213.0,0.11102678]
[1765514202906,0.002,92214.0,92213.0,0.12186935]
[1765514203457,0.01084269,92228.0,92223.0,0.21686334]
[1765514203458,0.01084257,92228.0,92223.0,0.21686334]
[1765514203687,0.0108401,92250.0,92246.0,0.04312798]
[1765514203688,0.01084022,92249.0,92246.0,0.04312798]
[1765514203894,0.00011649,92249.0,92248.0,0.0162688]
[1765514204169,0.00011649,92249.0,92248.0,0.0445988]
[1765514204321,0.00011649,92249.0,92248.0,0.0687888]
[1765514204531,0.00011649,92249.0,92248.0,0.0445988]
[1765514205003,0.00011649,92249.0,92248.0,0.0687888]
[1765514206396,0.01311649,92249.0,92248.0,0.0687888]
[1765514209200,0.01311649,92249.0,92248.0,0.085061]
[1765514209356,0.01311649,92249.0,92248.0,0.41888898]
[1765514209572,0.01404114,92249.0,92248.0,0.45142904]
[1765514210163,0.00804114,92249.0,92248.0,0.45142904]
[1765514210364,0.00904114,92249.0,92248.0,0.45242904]
[1765514210730,0.00204114,92249.0,92248.0,0.45242904]
[1765514212216,0.00304114,92249.0,92248.0,0.45342904]
[1765514213451,0.00204114,92249.0,92248.0,0.45242904]
[1765514213671,0.00304114,92249.0,92248.0,0.45442904]
[1765514214803,0.00204114,92249.0,92248.0,0.45342904]
[1765514215246,0.00304114,92249.0,92248.0,0.45542904]
[1765514215756,1.14e-06,92249.0,92248.0,0.50544743]
[1765514215926,0.01083634,92282.0,92278.0,0.22757148]
[1765514216257,0.01083623,92283.0,92279.0,0.21673403]
[1765514216258,0.02709146,92280.0,92279.0,0.21673403]
[1765514216449,0.00172967,92281.0,92278.0,0.22757254]
[1765514216653,0.02870433,92280.0,92279.0,0.03253501]
[1765514216852,0.00161287,92280.0,92279.0,0.04880381]
[1765514218845,0.00161287,92280.0,92279.0,0.001]
[1765514218846,0.03579235,92280.0,92279.0,0.001]
[1765514219195,0.03350287,92280.0,92279.0,0.001]
[1765514220006,0.04250287,92280.0,92279.0,0.002]
[1765514220214,0.06959433,92280.0,92279.0,0.002]
[1765514221649,0.06959433,92280.0,92279.0,0.01764]
[1765514221650,0.04250287,92280.0,92279.0,0.01764]
[1765514221896,0.01861287,92280.0,92279.0,0.04153]
[1765514222090,0.01950817,92280.0,92279.0,0.04153]
[1765514226071,0.01950817,92280.0,92279.0,0.01764]
[1765514226921,0.01950817,92280.0,92279.0,0.002065]
[1765514229204,0.01950817,92280.0,92279.0,0.21879903]
[1765514229412,0.01950817,92280.0,92279.0,0.002065]
[1765514230433,0.04659963,92280.0,92279.0,0.002065]
[1765514232556,0.05743703,92280.0,92279.0,0.002065]
[1765514232919,0.03034557,92280.0,92279.0,0.002065]
[1765514234818,0.05743703,92280.0,92279.0,0.002065]
[1765514235980,0.06753801,92280.0,92279.0,0.002065]
[1765514236203,0.1618185,92280.0,92279.0,0.002065]
[1765514236399,0.20641301,92280.0,92279.0,0.002065]
[1765514236609,0.08461801,92280.0,92279.0,0.002065]
[1765514244052,0.05752655,92280.0,92279.0,0.002065]
[1765514244651,0.08461801,92280.0,92279.0,0.002065]
[1765514250410,0.08463852,92280.0,92279.0,0.002065]
[1765514253427,0.07451703,92280.0,92279.0,0.002065]
[1765514255526,0.08464022,92280.0,92279.0,0.002065]
[1765514257253,0.07451703,92280.0,92279.0,0.002065]
[1765514263626,0.06367963,92280.0,92279.0,0.002065]
[1765514279021,0.03658817,92280.0,92279.0,0.002065]
[1765514280037,0.06367963,92280.0,92279.0,0.002065]
[1765514280265,0.03658817,92280.0,92279.0,0.002065]
[1765514287099,0.03544451,92280.0,92279.0,0.002065]
[1765514298632,0.10943565,92280.0,92279.0,0.002065]
[1765514298916,0.13652711,92280.0,92279.0,0.002065]
[1765514299485,0.14665996,92280.0,92279.0,0.002065]
[1765514299678,0.07266882,92280.0,92279.0,0.002065]
[1765514300080,0.06253597,92280.0,92279.0,0.002065]
[1765514300507,0.03544451,92280.0,92279.0,0.002065]
[1765514321099,0.03544451,92280.0,92279.0,0.026535]
[1765514321302,0.03544451,92280.0,92279.0,0.002065]
[1765514324491,0.05171331,92280.0,92279.0,0.002065]
[1765514353236,0.06820248,92280.0,92279.0,0.002065]
[1765514354529,0.05112248,92280.0,92279.0,0.002065]
[1765514354739,0.06820248,92280.0,92279.0,0.002065]
[1765514354946,0.05171331,92280.0,92279.0,0.002065]
[1765514381771,0.03463331,92280.0,92279.0,0.002065]
[1765514393795,0.06172477,92280.0,92279.0,0.002065]
[1765514401362,0.03463331,92280.0,92279.0,0.002065]
[1765514403700,0.03463331,92280.0,92279.0,0.040385]
[1765514403914,0.01836451,92280.0,92279.0,0.06412652]
[1765514404345,0.01836451,92280.0,92279.0,0.0512224]
[1765514404560,0.01836451,92280.0,92279.0,0.040385]
[1765514411541,0.0178953,92280.0,92279.0,0.040385]
[1765514417638,0.0178953,92280.0,92279.0,0.052405]
[1765514460225,0.0178953,92280.0,92279.0,0.05354866]
[1765514491857,0.0178953,92280.0,92279.0,0.032405]
[1765514501637,0.0178953,92280.0,92279.0,0.048845]
[1765514503531,0.0178953,92280.0,92261.0,0.01151]
[1765514503532,0.01083822,92266.0,92261.0,0.01151]
[1765514503709,0.01083893,92260.0,92257.0,0.0178953]
[1765514503908,0.01083893,92260.0,92258.0,0.0162688]
[1765514503909,0.22761906,92260.0,92258.0,0.0162688]
[1765514504107,0.06833058,92259.0,92258.0,0.0162688]
[1765514504941,0.01083881,92261.0,92258.0,0.0566788]
[1765514505106,0.01083858,92263.0,92260.0,0.02795]
[1765514505627,0.01083858,92263.0,92261.0,0.02397]
[1765514506417,0.01883858,92263.0,92261.0,0.02397]
[1765514506621,0.008,92263.0,92261.0,0.02397]
[1765514506860,0.014,92263.0,92261.0,0.02397]
[1765514507079,0.008,92263.0,92261.0,0.02397]
[1765514507627,0.013,92263.0,92261.0,0.02397]
[1765514507783,0.005,92263.0,92261.0,0.02397]
[1765514507984,0.01,92263.0,92261.0,0.02397]
[1765514509111,0.01,92263.0,92262.0,0.01605]
[1765514509455,0.01040441,92263.0,92262.0,0.03879]
[1765514509654,0.01040441,92263.0,92262.0,0.03993366]
[1765514510280,0.00540441,92263.0,92262.0,0.03993366]
[1765514510483,0.01040441,92263.0,92262.0,0.03993366]
[1765514510910,0.00540441,92263.0,92262.0,0.03993366]
[1765514511242,0.01140441,92263.0,92262.0,0.03993366]
[1765514525294,0.01140441,92263.0,92262.0,0.00114366]
[1765514530704,0.01083905,92259.0,92255.0,0.01083952]
[1765514530936,0.01083905,92259.0,92257.0,0.0162688]
[1765514531321,0.05859287,92259.0,92257.0,0.0162688]
[1765514531536,0.21678336,92258.0,92257.0,0.0162688]
[1765514531736,0.05859287,92259.0,92257.0,0.0162688]
[1765514531946,0.05959287,92259.0,92257.0,0.0162688]
[1765514532161,0.01083916,92258.0,92255.0,0.01083952]
[1765514532400,0.01083916,92258.0,92257.0,0.0162688]
[1765514532559,0.03248692,92258.0,92257.0,0.0162688]
[1765514532724,0.03748692,92258.0,92257.0,0.0162688]
[1765514532926,0.03248692,92258.0,92257.0,0.0162688]
[1765514533132,0.24927028,92258.0,92257.0,0.0162688]
[1765514533334,0.25127028,92258.0,92257.0,0.0162688]
[1765514533541,0.04048692,92258.0,92257.0,0.0162688]
[1765514534593,0.23562252,92258.0,92257.0,0.0162688]
[1765514534804,0.01683916,92258.0,92255.0,0.01083952]
[1765514534997,0.23362279,92258.0,92257.0,0.0162688]
[1765514535422,0.23862279,92258.0,92257.0,0.0162688]
[1765514535593,0.23362279,92258.0,92257.0,0.0162688]
[1765514536052,0.01883916,92258.0,92257.0,0.0162688]
[1765514536228,0.01683916,92258.0,92257.0,0.0162688]
[1765514536441,0.01709915,92258.0,92257.0,0.0162688]
[1765514536649,0.01609915,92258.0,92257.0,0.0162688]
[1765514536896,0.00525999,92258.0,92257.0,0.28626817]
[1765514537029,0.01013773,92282.0,92279.0,0.21673403]
[1765514537216,0.01083587,92286.0,92280.0,0.0448888]
[1765514537417,0.01083576,92287.0,92280.0,0.0683388]
[1765514537944,0.01083599,92285.0,92280.0,0.0683388]
[1765514538272,0.0051168,92281.0,92280.0,0.0448888]
[1765514538456,0.0001168,92281.0,92280.0,0.0683388]
[1765514538664,0.0071168,92281.0,92280.0,0.0448888]
[1765514538873,0.0121168,92281.0,92280.0,0.0448888]
[1765514540189,0.0121168,92281.0,92280.0,0.0683388]
[1765514541788,0.0121168,92281.0,92280.0,0.0448888]
[1765514543594,0.21673403,92279.0,92274.0,0.01233]
[1765514543715,0.01083658,92280.0,92274.0,0.01233]
[1765514543716,0.01083693,92277.0,92274.0,0.01233]
[1765514543916,0.00049097,92275.0,92274.0,0.02316728]
[1765514544593,0.02714516,92275.0,92258.0,0.01083916]
[1765514544883,0.02714516,92275.0,92255.0,0.01083952]
[1765514544884,0.01083916,92258.0,92255.0,0.01083952]
[1765514545033,0.22762279,92258.0,92257.0,0.0162688]
[1765514545233,0.22761784,92260.0,92257.0,0.0162688]
[1765514545637,0.01083846,92264.0,92257.0,0.0162688]
[1765514545869,0.01083858,92263.0,92258.0,0.01083916]
[1765514546182,0.21677396,92262.0,92258.0,0.01083916]
[1765514546391,0.01083869,92262.0,92259.0,0.01083905]
[1765514546729,0.01083858,92263.0,92259.0,0.01083905]
[1765514547067,0.01083858,92263.0,92260.0,0.03428893]
[1765514547272,0.01083858,92263.0,92260.0,0.01083893]
[1765514547674,0.01083846,92264.0,92260.0,0.01083893]
[1765514547675,0.001,92262.0,92261.0,0.02345]
[1765514548061,0.001,92262.0,92260.0,0.22761606]
[1765514548062,0.01083822,92266.0,92262.0,0.01083869]
[1765514548240,0.001,92263.0,92262.0,0.01083869]
[1765514548439,0.002,92263.0,92262.0,0.01083869]
[1765514548714,0.001,92263.0,92262.0,0.01083869]
[1765514549593,0.002,92263.0,92262.0,0.01483869]
[1765514549913,0.001,92263.0,92262.0,0.01483869]
[1765514550926,0.002,92263.0,92262.0,0.01583869]
[1765514553218,0.002,92263.0,92262.0,0.06905235]
[1765514559761,0.002,92263.0,92262.0,0.28582631]
[1765514582274,0.002,92263.0,92262.0,0.005]
[1765514582506,0.00246921,92263.0,92262.0,0.005]
[1765514583256,0.04706372,92263.0,92262.0,0.001]
[1765514583472,0.01083999,92251.0,92247.0,0.01084046]
[1765514583851,0.01083999,92251.0,92247.0,0.03490046]
[1765514585096,0.01083999,92251.0,92247.0,0.01084046]
[1765514585301,0.01083999,92251.0,92248.0,0.02406]
[1765514586753,0.01083999,92251.0,92248.0,0.02506]
[1765514587373,0.2276402,92251.0,92248.0,0.02506]
[1765514587591,0.2306402,92251.0,92248.0,0.02506]
[1765514600411,0.01383999,92251.0,92250.0,0.01506]
[1765514600750,0.2306398,92251.0,92250.0,0.01506]
[1765514601710,0.2276398,92251.0,92250.0,0.01506]
[1765514602042,0.2306398,92251.0,92250.0,0.01606]
[1765514603252,0.2366398,92251.0,92250.0,0.01606]
[1765514604192,0.01983999,92251.0,92250.0,0.03936]
[1765514605064,0.01983999,92251.0,92250.0,0.01606]
[1765514606599,0.01983999,92251.0,92250.0,0.03936]
[1765514606801,0.009,92251.0,92250.0,0.03936]
[1765514607213,0.009,92251.0,92250.0,0.04050366]
[1765514612451,0.00859669,92251.0,92250.0,0.04050366]
[1765514612672,0.00859669,92251.0,92250.0,0.08363164]
[1765514613234,0.00259669,92251.0,92250.0,0.08363164]
[1765514613687,0.00359669,92251.0,92250.0,0.08463164]
[1765514614151,0.00259669,92251.0,92250.0,0.08363164]
[1765514614359,0.01106929,92266.0,92263.0,0.01083858]
[1765514614360,0.00023107,92266.0,92263.0,0.01083858]
[1765514614576,0.00023107,92266.0,92265.0,0.0162688]
[1765514615869,0.00323107,92266.0,92265.0,0.0172688]
[1765514616072,0.00623107,92266.0,92265.0,0.0172688]
[1765514616473,0.00323107,92266.0,92265.0,0.0172688]
[1765514617037,0.00923107,92266.0,92265.0,0.0182688]
[1765514617213,0.00923107,92266.0,92265.0,0.0690888]
[1765514618272,0.00923107,92266.0,92265.0,0.0457888]
[1765514622396,0.00923107,92266.0,92265.0,0.0690888]
[1765514631697,0.00923107,92266.0,92265.0,0.07023246]
[1765514632534,0.00323107,92266.0,92265.0,0.06923246]
[1765514632858,0.00423107,92266.0,92265.0,0.07123246]
[1765514633101,0.00123107,92266.0,92265.0,0.07023246]
[1765514633530,0.00223107,92266.0,92265.0,0.07423246]
[1765514635858,0.00270028,92266.0,92265.0,0.006]
[1765514637757,0.00170028,92266.0,92265.0,0.002]
[1765514637923,0.00470028,92266.0,92265.0,0.003]
[1765514638326,0.00370028,92266.0,92265.0,0.001]
[1765514638742,0.00970028,92266.0,92265.0,0.001]
[1765514640483,0.22646485,92266.0,92265.0,0.001]
[1765514641068,0.00970028,92266.0,92265.0,0.001]
[1765514641879,0.22646485,92266.0,92265.0,0.001]
[1765514643704,0.00970028,92266.0,92265.0,0.001]
[1765514669677,0.00970028,92266.0,92265.0,0.03996]
[1765514669874,0.00970028,92266.0,92265.0,0.25672692]
[1765514670115,0.00970028,92266.0,92265.0,0.03996]
[1765514671041,0.00970028,92266.0,92265.0,0.01734]
[1765514671464,0.00970028,92266.0,92265.0,0.001]
[1765514672005,0.00970028,92266.0,92265.0,0.03996]
[1765514677228,0.00970028,92266.0,92265.0,0.04110366]
[1765514677229,0.00923107,92266.0,92265.0,0.04110366]
[1765514678825,0.00323107,92266.0,92265.0,0.04110366]
[1765514679251,0.00423107,92266.0,92265.0,0.04410366]
[1765514679707,0.00123107,92266.0,92265.0,0.04310366]
[1765514680047,0.00223107,92266.0,92265.0,0.04710366]
[1765514687271,0.00223107,92266.0,92265.0,0.09023164]
[1765514692978,0.00223107,92266.0,92265.0,0.04710366]
[1765514693155,0.00223107,92266.0,92265.0,0.09023164]
[1765514693382,0.00223107,92266.0,92265.0,0.10106857]
[1765514698144,0.00123107,92266.0,92265.0,0.09706857]
[1765514698473,0.00123107,92266.0,92265.0,0.09906857]
[1765514698645,0.00223107,92266.0,92265.0,0.10306857]
[1765514701145,0.00223107,92266.0,92265.0,0.15308696]
[1765514702287,0.00223107,92266.0,92265.0,0.06994708]
[1765514703194,0.00223107,92266.0,92265.0,0.10306857]
[1765514711335,0.00223107,92266.0,92265.0,0.05994059]
[1765514711568,0.00223107,92266.0,92265.0,0.009]
[1765514711770,0.21899564,92266.0,92265.0,0.009]
[1765514712798,0.00023107,92266.0,92263.0,0.22760947]
[1765514713017,0.00123107,92266.0,92265.0,0.006]
[1765514713420,0.00123107,92266.0,92265.0,0.003]
[1765514714795,0.00123107,92266.0,92265.0,0.006]
[1765514714961,0.00023107,92266.0,92265.0,0.003]
[1765514715391,0.00023107,92266.0,92265.0,0.04374]
[1765514715392,0.00123107,92266.0,92265.0,0.04374]
[1765514718865,0.00123107,92266.0,92265.0,0.005]
[1765514720085,0.00123107,92266.0,92265.0,0.02751]
[1765514720469,0.00123107,92266.0,92265.0,0.04325]
[1765514723210,0.00123107,92266.0,92265.0,0.26001692]
[1765514724308,0.00123107,92266.0,92265.0,0.26116058]
[1765514724735,0.00123107,92266.0,92265.0,0.27357058]
[1765514726147,0.00123107,92266.0,92265.0,0.25106058]
[1765514726663,0.00123107,92266.0,92265.0,0.27357058]
[1765514744463,0.00123107,92266.0,92265.0,0.25106058]
[1765514745051,0.00123107,92266.0,92265.0,0.27357058]
[1765514765477,0.00123107,92266.0,92265.0,0.31669856]
[1765514766742,0.00123107,92266.0,92265.0,0.27357058]
[1765514776918,0.00123107,92266.0,92265.0,0.31669856]
[1765514777361,0.00123107,92266.0,92265.0,0.32753397]
[1765514777585,0.0058332,92289.0,92265.0,0.11076705]
[1765514777858,0.00595002,92289.0,92288.0,0.0162688]
[1765514778066,0.00641923,92289.0,92288.0,0.0162688]
[1765514778194,0.00708336,92289.0,92288.0,0.0162688]
[1765514778403,0.00125016,92289.0,92288.0,0.0162688]
[1765514780036,0.00825016,92289.0,92288.0,0.0172688]
[1765514780922,0.01425016,92289.0,92288.0,0.0182688]
[1765514788582,0.01425016,92289.0,92288.0,0.002]
[1765514788794,0.05884467,92289.0,92288.0,0.002]
[1765514788979,0.08593348,92289.0,92288.0,0.002]
[1765514789203,0.09606151,92289.0,92288.0,0.002]
[1765514789735,0.38676151,92289.0,92288.0,0.002]
[1765514789919,0.3596727,92289.0,92288.0,0.002]
[1765514790238,0.48101925,92289.0,92288.0,0.002]
[1765514795412,0.53103764,92289.0,92288.0,0.002]
[1765514795608,0.53103764,92289.0,92245.0,0.01134]
[1765514795609,0.01084022,92249.0,92245.0,0.02218069]
[1765514795861,0.01083999,92251.0,92248.0,0.01084034]
[1765514795996,0.0108401,92250.0,92246.0,0.01084057]
[1765514796200,0.01084022,92249.0,92246.0,0.01084057]
[1765514796446,0.0108401,92250.0,92247.0,0.01084046]
[1765514796681,0.01084022,92249.0,92246.0,0.01084057]
[1765514796880,0.01083928,92257.0,92252.0,0.01083987]
[1765514798101,0.01083916,92258.0,92254.0,0.01083963]
[1765514798234,0.01083916,92258.0,92257.0,0.0162688]
[1765514799136,0.01183916,92258.0,92257.0,0.0162688]
[1765514799849,0.01283916,92258.0,92257.0,0.0202688]
[1765514801266,0.002,92258.0,92257.0,0.0202688]
[1765514805012,0.002,92258.0,92257.0,0.0595588]
[1765514810819,0.002,92258.0,92257.0,0.0202688]
[1765514811488,0.002,92258.0,92257.0,0.0595388]
[1765514812457,0.002,92258.0,92257.0,0.25263451]
[1765514812692,0.002,92258.0,92257.0,0.0358488]
[1765514812854,0.002,92258.0,92257.0,0.0595388]
[1765514813674,0.002,92258.0,92257.0,0.27632451]
[1765514815652,0.002,92258.0,92257.0,0.27746817]
[1765514815857,0.002,92258.0,92257.0,0.25377817]
[1765514815998,0.002,92258.0,92257.0,0.23819817]
[1765514816405,0.002,92258.0,92257.0,0.02141246]
[1765514817248,0.002,92258.0,92257.0,0.23819817]
[1765514817403,0.002,92258.0,92257.0,0.02141246]
[1765514817840,0.002,92258.0,92257.0,0.23819817]
[1765514818303,0.002,92258.0,92257.0,0.00514366]
[1765514821092,0.002,92258.0,92257.0,0.22192937]
[1765514822167,0.002,92258.0,92257.0,0.26119937]
[1765514831039,0.002,92258.0,92257.0,0.04441366]
[1765514831239,0.002,92258.0,92257.0,0.26119937]
[1765514831866,0.002,92258.0,92257.0,0.02072366]
[1765514832742,0.002,92258.0,92257.0,0.23750937]
[1765514833343,0.002,92258.0,92257.0,0.26119937]
[1765514833706,0.002,92258.0,92257.0,0.27746817]
[1765514836133,0.002,92258.0,92257.0,0.28747466]
[1765514836755,0.002,92258.0,92257.0,0.57817466]
[1765514837336,0.002,92258.0,92257.0,0.64527305]
[1765514837337,0.001,92258.0,92257.0,0.64527305]
[1765514837735,0.00023104,92274.0,92273.0,0.2598761]
[1765514837939,0.00023104,92274.0,92273.0,0.31587856]
[1765514839348,0.00023104,92274.0,92273.0,0.27275058]
[1765514840608,0.00023104,92274.0,92273.0,0.27575058]
[1765514841083,0.00123104,92274.0,92273.0,0.27775058]
[1765514841649,0.00123104,92274.0,92273.0,0.0212688]
[1765514844653,0.02627864,92274.0,92273.0,0.0212688]
[1765514846472,0.00123104,92274.0,92273.0,0.0212688]
[1765514846687,0.00170025,92274.0,92273.0,0.005]
[1765514847878,0.00170025,92274.0,92273.0,0.002]
[1765514848678,0.00770025,92274.0,92273.0,0.003]
[1765514849258,0.00670025,92274.0,92273.0,0.001]
[1765514849587,0.00670025,92274.0,92273.0,0.002]
[1765514849588,0.01370025,92274.0,92273.0,0.002]
[1765514849995,0.091678,92274.0,92273.0,0.002]
[1765514855448,0.108758,92274.0,92273.0,0.002]
[1765514862456,0.03078025,92274.0,92273.0,0.002]
[1765514862868,0.01370025,92274.0,92273.0,0.002]
[1765514863080,0.03078025,92274.0,92273.0,0.002]
[1765514890302,0.01370025,92274.0,92273.0,0.002]
[1765514894142,0.01370025,92274.0,92273.0,0.04256]
[1765514894346,0.01370025,92274.0,92273.0,0.0588288]
[1765514897788,0.01323104,92274.0,92273.0,0.0588288]
[1765514901455,0.01323104,92274.0,92273.0,0.0340088]
[1765514901790,0.01323104,92274.0,92273.0,0.0182688]
[1765514903334,0.01323104,92274.0,92273.0,0.0688288]
[1765514903736,0.01323104,92274.0,92273.0,0.0452188]
[1765514905326,0.01323104,92274.0,92273.0,0.0301488]
[1765514916055,0.01323104,92274.0,92273.0,0.0688288]
[1765514924702,0.01323104,92274.0,92273.0,0.06997246]
[1765514927517,0.01323104,92274.0,92273.0,0.04636246]
[1765514927644,0.01323104,92274.0,92273.0,0.07102246]
[1765514935084,0.01323104,92274.0,92273.0,0.04636246]
[1765514935682,0.01323104,92274.0,92273.0,0.002]
[1765514935683,0.01370025,92274.0,92273.0,0.002]
[1765514935884,0.23044602,92274.0,92273.0,0.002]
[1765514942095,0.01370025,92274.0,92273.0,0.002]
[1765514948814,0.04079347,92274.0,92273.0,0.002]
[1765514950665,0.01370025,92274.0,92273.0,0.002]
[1765514951749,0.01370025,92274.0,92273.0,0.02666]
[1765514953440,0.01370025,92274.0,92273.0,0.0548]
[1765514953865,0.01370025,92274.0,92273.0,0.03014]
[1765514954461,0.01323104,92274.0,92273.0,0.05594366]
[1765514955817,0.00623104,92274.0,92273.0,0.05494366]
[1765514956157,0.00923104,92274.0,92273.0,0.05594366]
[1765514956704,0.00623104,92274.0,92273.0,0.05494366]
[1765514957015,0.00723104,92274.0,92273.0,0.05794366]
[1765514957176,0.00123104,92274.0,92273.0,0.05694366]
[1765514957512,0.00123104,92274.0,92273.0,0.05994366]
[1765514964934,0.00123104,92274.0,92273.0,0.05964366]
[1765514975279,0.00123104,92274.0,92273.0,0.03498366]
[1765514975637,0.00123104,92274.0,92273.0,0.05765366]
[1765514989474,0.00123104,92274.0,92273.0,0.0684893]
[1765514992336,0.00123104,92274.0,92273.0,0.07849579]
[1765514999492,0.00123104,92274.0,92273.0,0.0684893]
[1765515001657,0.00123104,92274.0,92273.0,0.11161728]
[1765515005735,0.00123104,92274.0,92273.0,0.0684893]
[1765515010655,0.00123104,92274.0,92273.0,0.0703793]
[1765515015398,0.00123104,92274.0,92273.0,0.11350728]
[1765515019986,0.00123104,92274.0,92273.0,0.0703793]
[1765515022106,0.00123104,92274.0,92273.0,0.0304393]
[1765515023723,0.00123104,92274.0,92273.0,0.0718593]
[1765515028364,0.00123104,92274.0,92273.0,0.11498728]
[1765515042694,0.00123104,92274.0,92273.0,0.0718593]
[1765515072892,0.00123104,92274.0,92273.0,0.0179793]
[1765515073162,0.00123104,92274.0,92273.0,0.01683564]
[1765515073364,0.00123104,92274.0,92273.0,0.03310444]
[1765515081543,0.00123104,92274.0,92273.0,0.07268444]
[1765515082977,0.00123104,92274.0,92273.0,0.28943256]
[1765515085694,0.00123104,92274.0,92273.0,0.29057622]
[1765515086119,0.00123104,92274.0,92273.0,0.3337042]
[1765515088167,0.00123104,92274.0,92273.0,0.29057622]
[1765515090497,1.0,95370.0,92314.0,0.01569]
[1765515090498,0.00461559,92319.0,92314.0,0.01569]
[1765515090722,0.01147,92342.0,92314.0,0.01569]
[1765515090724,0.01082754,92357.0,92348.0,0.21657115]
[1765515090922,0.01082754,92357.0,92348.0,0.21657097]
[1765515090923,0.02302,92349.0,92348.0,0.21657097]
[1765515091091,0.02302,92349.0,92347.0,0.01082872]
[1765515091092,0.02302,92349.0,92347.0,0.21657374]
[1765515091093,0.0485401,92349.0,92347.0,0.21657374]
[1765515091296,0.0485401,92349.0,92341.0,0.01082942]
[1765515091297,0.02698921,92348.0,92341.0,0.01082942]
[1765515091495,0.02698921,92348.0,92346.0,0.21657678]
[1765515091496,0.01193921,92348.0,92346.0,0.21657678]
[1765515091847,0.00078979,92350.0,92348.0,0.21657209]
[1765515092011,0.00078979,92350.0,92348.0,0.21771575]
[1765515092179,0.00078979,92350.0,92349.0,0.01569]
[1765515092381,0.00078979,92350.0,92349.0,0.04020366]
[1765515092575,0.00078979,92350.0,92349.0,0.37403164]
[1765515093076,0.00178979,92350.0,92349.0,0.43241441]
[1765515093229,0.00178979,92350.0,92349.0,0.41267033]
[1765515093391,0.00078979,92350.0,92349.0,0.41267033]
[1765515093589,0.00078979,92350.0,92349.0,0.37403164]
[1765515093927,0.00178979,92350.0,92349.0,0.37803164]
[1765515094131,0.00178979,92350.0,92349.0,0.38103164]
[1765515094723,0.00178979,92350.0,92349.0,0.39819164]
[1765515097886,0.00178979,92350.0,92349.0,0.41443428]
[1765515101298,0.00398276,92350.0,92349.0,0.41876817]
[1765515103211,0.00398276,92350.0,92349.0,1.46878656]
[1765515103212,1e-08,92350.0,92349.0,1.46878656]
[1765515103438,1e-08,92350.0,92349.0,0.75668656]
[1765515104099,1e-08,92350.0,92349.0,0.75268656]
[1765515104301,1e-08,92350.0,92349.0,0.75668656]
[1765515104619,0.00100001,92350.0,92349.0,0.76268656]
[1765515104841,0.0004,92380.0,92379.0,0.01000649]
[1765515105178,0.0004,92380.0,92379.0,0.57621308]
[1765515105179,0.00051692,92380.0,92379.0,0.57621308]
[1765515105654,0.00051692,92380.0,92379.0,0.58054573]
[1765515106262,0.00051692,92380.0,92379.0,0.58154573]
[1765515107120,0.00051692,92380.0,92379.0,0.59155222]
[1765515107501,0.00051692,92380.0,92379.0,0.58154573]
[1765515108395,0.00051692,92380.0,92379.0,0.58254573]
[1765515108826,0.00051692,92380.0,92379.0,0.62567371]
[1765515110344,0.00051692,92380.0,92379.0,0.62134106]
[1765515110591,0.00138193,92380.0,92379.0,0.57821308]
[1765515110822,0.00138193,92380.0,92379.0,0.62134106]